bitfinex-derivatives/quotes_BTCF0:USTF0_20250915
["timestamp","ask_amount","ask_price","bid_price","bid_amount"]
[1757962528783,0.43372457,115340.0,115330.0,1.54893299]
[1757962529572,0.06126158,115340.0,115330.0,1.54893299]
[1757962529879,0.06126158,115340.0,115330.0,1.50730161]
[1757962531079,0.02537158,115340.0,115330.0,1.50730161]
[1757962534783,0.02537158,115340.0,115330.0,1.17647]
[1757962534977,0.02537158,115340.0,115330.0,1.50730161]
[1757962537075,0.02537158,115340.0,115330.0,1.59399091]
[1757962537885,0.02537158,115340.0,115330.0,1.50730161]
[1757962538773,0.02537158,115340.0,115330.0,1.59399091]
[1757962539485,0.02537158,115340.0,115330.0,1.66399091]
[1757962539674,0.02537158,115340.0,115330.0,2.14399091]
[1757962540685,0.02537158,115340.0,115330.0,2.05730161]
[1757962543888,0.02537158,115340.0,115330.0,2.05706161]
[1757962544094,0.02537158,115340.0,115330.0,1.26414161]
[1757962544287,0.02537158,115340.0,115330.0,2.05706161]
[1757962544788,0.02537158,115340.0,115330.0,1.26414161]
[1757962544991,0.02537158,115340.0,115330.0,2.05706161]
[1757962546195,0.02537158,115340.0,115330.0,1.26414161]
[1757962546487,0.02537158,115340.0,115330.0,2.05702161]
[1757962546892,0.02541471,115340.0,115330.0,2.05702161]
[1757962547793,0.02541471,115340.0,115330.0,1.26414161]
[1757962548091,0.02541471,115340.0,115330.0,2.05702161]
[1757962549693,0.02541471,115340.0,115330.0,1.75702161]
[1757962558489,0.02541471,115340.0,115330.0,1.76793729]
[1757962559795,0.02541471,115340.0,115330.0,2.00793729]
[1757962561095,0.02541471,115340.0,115330.0,2.08371091]
[1757962562296,0.02541471,115340.0,115330.0,1.83371091]
[1757962562493,0.02541471,115340.0,115330.0,1.84462336]
[1757962562698,0.02541471,115340.0,115330.0,0.63422245]
[1757962562890,0.02541471,115340.0,115330.0,1.51769406]
[1757962563390,0.02541471,115340.0,115330.0,1.18686245]
[1757962563601,0.02541471,115340.0,115330.0,1.51769406]
[1757962563996,0.004,115340.0,115330.0,1.51769406]
[1757962564692,0.02576,115340.0,115330.0,0.76414161]
[1757962564892,0.02576,115340.0,115330.0,1.55678161]
[1757962565394,0.0471958,115340.0,115330.0,1.55678161]
[1757962565691,0.0254358,115340.0,115330.0,1.55678161]
[1757962566093,0.004,115340.0,115330.0,1.55678161]
[1757962566497,0.004,115340.0,115330.0,1.56767085]
[1757962567103,0.004,115340.0,115330.0,1.55674161]
[1757962567401,0.02537248,115340.0,115330.0,1.55674161]
[1757962572702,0.02537248,115340.0,115330.0,1.50674161]
[1757962573599,0.02537248,115340.0,115330.0,1.64674161]
[1757962573901,0.02537248,115340.0,115330.0,1.50674161]
[1757962574406,0.02537248,115340.0,115330.0,1.71343131]
[1757962574795,0.02537248,115340.0,115330.0,1.62674161]
[1757962575402,0.02537248,115340.0,115330.0,1.50674161]
[1757962576597,0.02537248,115340.0,115330.0,1.61674161]
[1757962576803,0.02237248,115340.0,115330.0,1.50674161]
[1757962577098,0.02337248,115340.0,115330.0,1.50674161]
[1757962578006,0.02337214,115340.0,115330.0,1.50674161]
[1757962581206,0.02337214,115340.0,115330.0,1.70343131]
[1757962581403,0.02337214,115340.0,115330.0,1.85983131]
[1757962581705,0.0001,115360.0,115350.0,0.0866747]
[1757962581900,0.01072549,115370.0,115350.0,2.56279261]
[1757962582100,0.01369,115380.0,115360.0,1.02246322]
[1757962582307,0.01369,115380.0,115370.0,1.5044915]
[1757962582901,0.01369,115380.0,115370.0,1.5911511]
[1757962583301,0.02434978,115390.0,115370.0,1.5044915]
[1757962583504,0.04610978,115390.0,115380.0,0.69163161]
[1757962583712,0.29610978,115390.0,115380.0,0.69163161]
[1757962583907,0.04610978,115390.0,115380.0,0.69163161]
[1757962584108,0.04610978,115390.0,115380.0,1.48395161]
[1757962584802,0.04710978,115390.0,115380.0,1.48395161]
[1757962585204,0.11600321,115390.0,115380.0,1.48395161]
[1757962585404,0.03645,115390.0,115380.0,1.48395161]
[1757962586308,0.04815826,115390.0,115380.0,1.48395161]
[1757962588905,0.04820997,115390.0,115380.0,1.48395161]
[1757962589099,0.03745,115390.0,115380.0,1.48395161]
[1757962590600,0.03745,115390.0,115380.0,0.69163161]
[1757962590911,0.03745,115390.0,115380.0,1.48375161]
[1757962591104,0.03745,115390.0,115380.0,1.12295161]
[1757962591700,0.03745,115390.0,115380.0,1.15292]
[1757962591900,0.03745,115390.0,115380.0,1.52472207]
[1757962592906,0.03745,115390.0,115380.0,1.52468207]
[1757962593609,0.0695748,115390.0,115380.0,1.52468207]
[1757962594407,0.0695748,115390.0,115380.0,0.73264207]
[1757962594612,0.0695748,115390.0,115380.0,1.16380207]
[1757962595411,0.44141687,115390.0,115380.0,1.16380207]
[1757962595811,0.034,115380.0,115370.0,0.38139989]
[1757962596108,0.05519001,115380.0,115370.0,1.54510196]
[1757962596310,0.05519001,115380.0,115370.0,1.54506196]
[1757962599719,0.05519001,115380.0,115370.0,0.75314196]
[1757962599919,0.05519001,115380.0,115370.0,1.54502196]
[1757962607918,0.05519001,115380.0,115370.0,1.54486196]
[1757962608717,0.05519001,115380.0,115370.0,0.75314196]
[1757962608923,0.05519001,115380.0,115370.0,1.54482196]
[1757962610516,0.05519001,115380.0,115370.0,0.75314196]
[1757962610823,0.05519001,115380.0,115370.0,1.54478196]
[1757962612823,0.05519001,115380.0,115370.0,0.38129989]
[1757962613012,0.42703208,115380.0,115370.0,1.54474196]
[1757962613212,0.05519001,115380.0,115370.0,1.54474196]
[1757962613417,0.03398001,115380.0,115370.0,1.91658403]
[1757962613619,0.03398001,115380.0,115370.0,1.54474196]
[1757962613822,0.03398001,115380.0,115370.0,1.91658403]
[1757962614619,0.03398001,115380.0,115370.0,1.54474196]
[1757962617724,0.03398001,115380.0,115370.0,1.91658403]
[1757962618322,0.03398001,115380.0,115370.0,1.54474196]
[1757962619123,0.02119001,115380.0,115370.0,1.91658403]
[1757962619722,0.02119001,115380.0,115370.0,2.00324403]
[1757962619917,0.02119001,115380.0,115370.0,1.91658403]
[1757962624029,0.03508001,115380.0,115370.0,1.54454196]
[1757962624527,0.03508001,115380.0,115370.0,1.91638403]
[1757962625426,0.03508001,115380.0,115370.0,1.54454196]
[1757962626020,0.03508001,115380.0,115370.0,0.75314196]
[1757962626224,0.03508001,115380.0,115370.0,1.54450196]
[1757962626828,0.03508001,115380.0,115370.0,0.75314196]
[1757962627020,0.03508001,115380.0,115370.0,1.54446196]
[1757962627629,0.03508001,115380.0,115370.0,1.91630403]
[1757962630123,0.02119001,115380.0,115370.0,2.00296403]
[1757962630327,0.02119001,115380.0,115370.0,2.28296403]
[1757962630928,0.02119001,115380.0,115370.0,1.49164403]
[1757962631425,0.02119001,115380.0,115370.0,2.00288403]
[1757962632126,0.02119001,115380.0,115370.0,1.91618403]
[1757962633535,0.05818001,115380.0,115370.0,1.17245989]
[1757962633832,0.02119001,115380.0,115370.0,1.91614403]
[1757962637730,0.02119001,115380.0,115370.0,2.03614403]
[1757962638327,0.02119001,115380.0,115370.0,1.97614403]
[1757962640135,0.02119001,115380.0,115370.0,1.60418196]
[1757962640136,0.03508001,115380.0,115370.0,1.60418196]
[1757962640438,0.43002208,115380.0,115370.0,0.38129989]
[1757962640634,0.43002208,115380.0,115370.0,0.02049989]
[1757962640835,0.43002208,115380.0,115370.0,1.54418196]
[1757962641838,0.05818001,115380.0,115370.0,1.54418196]
[1757962642047,0.43002208,115380.0,115370.0,1.54418196]
[1757962642240,0.03508001,115380.0,115370.0,1.54418196]
[1757962643341,0.02119001,115380.0,115370.0,1.54418196]
[1757962643644,0.02119001,115380.0,115370.0,0.75314196]
[1757962643945,0.02119001,115380.0,115370.0,1.54414196]
[1757962644948,0.02119001,115380.0,115370.0,1.17229989]
[1757962645246,0.02119001,115380.0,115370.0,1.54414196]
[1757962645642,0.02119001,115380.0,115370.0,2.24598403]
[1757962646044,0.02119001,115380.0,115370.0,2.58264403]
[1757962646546,0.0001,115390.0,115370.0,2.58264403]
[1757962646747,0.0215973,115390.0,115380.0,1.10448414]
[1757962646948,0.01379,115400.0,115380.0,1.43448414]
[1757962647148,0.01379,115400.0,115390.0,1.52356207]
[1757962647350,0.0351873,115400.0,115390.0,1.52356207]
[1757962648151,0.0361873,115400.0,115390.0,1.52356207]
[1757962649651,0.0371873,115400.0,115390.0,1.52356207]
[1757962650748,0.0234973,115400.0,115390.0,1.52356207]
[1757962651145,0.0363873,115400.0,115390.0,0.78264207]
[1757962651452,0.0575073,115400.0,115390.0,1.57348207]
[1757962651846,0.0575073,115400.0,115390.0,1.5320661]
[1757962652852,0.0363873,115400.0,115390.0,1.5320661]
[1757962653456,0.0363873,115400.0,115390.0,1.54255349]
[1757962654350,0.0363873,115400.0,115390.0,1.5320661]
[1757962655049,0.0363873,115400.0,115390.0,1.55207851]
[1757962655748,0.0234973,115400.0,115390.0,1.50207851]
[1757962655948,0.0234973,115400.0,115390.0,1.80207851]
[1757962656156,0.002,115400.0,115390.0,1.8703135]
[1757962656451,0.002,115400.0,115390.0,2.2873846]
[1757962656654,0.002,115400.0,115390.0,2.5373846]
[1757962657350,0.001,115400.0,115390.0,2.5383846]
[1757962657547,0.001,115400.0,115390.0,2.2079585]
[1757962657747,0.001,115400.0,115390.0,2.21828019]
[1757962657956,0.001,115400.0,115390.0,2.54870629]
[1757962658452,0.0001,115410.0,115390.0,2.54970629]
[1757962658651,0.01299,115410.0,115400.0,1.0216522]
[1757962658848,0.01289,115410.0,115400.0,1.0216522]
[1757962659161,0.05557104,115410.0,115400.0,0.6912261]
[1757962659345,0.03445104,115410.0,115400.0,1.4819461]
[1757962660257,0.03445104,115410.0,115400.0,1.8123722]
[1757962660655,0.03445104,115410.0,115400.0,1.9323722]
[1757962660954,0.03445104,115410.0,115400.0,1.8123722]
[1757962661459,0.02156104,115410.0,115400.0,2.1790097]
[1757962661653,0.0001,115420.0,115400.0,2.1790097]
[1757962661853,0.04468116,115420.0,115410.0,1.4819061]
[1757962662048,0.04468116,115420.0,115410.0,0.6912261]
[1757962662049,0.06613519,115420.0,115410.0,0.6912261]
[1757962662252,0.06613519,115420.0,115410.0,1.4819061]
[1757962663056,0.06713519,115420.0,115410.0,1.4819061]
[1757962663450,0.06713519,115420.0,115410.0,0.6912261]
[1757962663655,0.06813519,115420.0,115410.0,1.4818661]
[1757962668058,0.06813519,115420.0,115410.0,0.6912261]
[1757962668259,0.06813519,115420.0,115410.0,1.4817861]
[1757962673567,0.06813519,115420.0,115410.0,1.4817061]
[1757962678165,0.06813519,115420.0,115410.0,0.6912261]
[1757962678465,0.06813519,115420.0,115410.0,1.4816661]
[1757962679969,0.06813519,115420.0,115410.0,0.6912261]
[1757962680168,0.06813519,115420.0,115410.0,1.4816261]
[1757962682572,0.06813519,115420.0,115410.0,0.6912261]
[1757962682969,0.06813519,115420.0,115410.0,1.4815861]
[1757962683675,0.06813519,115420.0,115410.0,0.3608]
[1757962683870,0.06813519,115420.0,115410.0,1.15116]
[1757962684976,0.06813519,115420.0,115410.0,0.3608]
[1757962685176,0.06813519,115420.0,115410.0,1.15116]
[1757962685376,0.06813519,115420.0,115410.0,1.15112]
[1757962686776,0.06813519,115420.0,115410.0,0.3608]
[1757962686976,0.06813519,115420.0,115400.0,0.0001]
[1757962686977,0.03441,115410.0,115400.0,0.0001]
[1757962687173,0.03441,115400.0,115390.0,0.2665]
[1757962687481,0.03441,115390.0,115380.0,0.0001]
[1757962687678,0.01279,115380.0,115370.0,1.5116589]
[1757962687867,0.03434403,115380.0,115370.0,1.5815589]
[1757962688072,0.03434403,115380.0,115370.0,1.5115589]
[1757962688277,0.03434403,115380.0,115370.0,1.50145723]
[1757962688875,0.03434403,115380.0,115370.0,1.50545723]
[1757962689573,0.02155403,115380.0,115370.0,2.12211723]
[1757962689881,0.0001,115390.0,115370.0,2.12211723]
[1757962690076,0.02163211,115390.0,115380.0,0.6912261]
[1757962690279,0.02153211,115390.0,115380.0,0.6912261]
[1757962690690,0.02153211,115390.0,115380.0,0.9412261]
[1757962691071,0.02153211,115390.0,115380.0,1.1812261]
[1757962691476,0.02153211,115390.0,115380.0,1.1842261]
[1757962691884,0.02153211,115390.0,115380.0,1.1852261]
[1757962692984,0.0001,115400.0,115380.0,1.2718786]
[1757962693184,0.0216228,115400.0,115390.0,1.4815861]
[1757962693385,0.0215228,115400.0,115390.0,1.5315861]
[1757962693880,0.0344128,115410.0,115390.0,1.5315861]
[1757962694087,0.0560328,115410.0,115400.0,0.6912261]
[1757962694285,0.0559328,115410.0,115400.0,0.6912261]
[1757962694484,0.0343128,115410.0,115400.0,0.6912261]
[1757962694680,0.0215228,115410.0,115400.0,0.9412261]
[1757962694881,0.0215228,115410.0,115400.0,0.96118422]
[1757962695186,0.0215228,115410.0,115400.0,1.01744782]
[1757962695389,0.0215228,115410.0,115400.0,1.73904782]
[1757962695588,0.0215228,115410.0,115400.0,1.65241032]
[1757962696489,0.0215228,115410.0,115400.0,1.73904782]
[1757962697195,0.01289,115420.0,115400.0,1.65241032]
[1757962697490,0.03440761,115420.0,115410.0,1.4916261]
[1757962697691,0.03430761,115420.0,115410.0,1.8016261]
[1757962698292,0.01279,115420.0,115410.0,1.8016261]
[1757962698488,0.01279,115420.0,115410.0,1.4712]
[1757962698689,0.01379,115420.0,115410.0,1.8016261]
[1757962699189,0.001,115420.0,115410.0,1.8016261]
[1757962699584,0.001,115420.0,115410.0,0.6708]
[1757962699585,0.01379,115420.0,115410.0,0.6708]
[1757962699789,0.05692453,115420.0,115410.0,1.8012261]
[1757962700291,0.05792453,115420.0,115410.0,1.8012261]
[1757962700894,0.03630453,115420.0,115410.0,1.8012261]
[1757962701491,0.03630453,115420.0,115410.0,1.4708]
[1757962701693,0.03630453,115420.0,115410.0,1.8012261]
[1757962704798,0.03630453,115420.0,115410.0,1.4912261]
[1757962706597,0.05792453,115420.0,115410.0,1.5050261]
[1757962707602,0.05792453,115420.0,115410.0,0.6912261]
[1757962707791,0.05792453,115420.0,115410.0,1.5046661]
[1757962709300,0.05792453,115420.0,115410.0,1.17424]
[1757962709493,0.05792453,115420.0,115410.0,1.5046661]
[1757962711804,0.05792453,115420.0,115410.0,1.91750174]
[1757962713400,0.05792453,115420.0,115410.0,1.10406174]
[1757962713705,0.05792453,115420.0,115410.0,1.54459087]
[1757962714403,0.05792453,115420.0,115410.0,0.3608]
[1757962714707,0.4295554,115420.0,115410.0,1.18355087]
[1757962715198,0.4295554,115420.0,115410.0,1.54435087]
[1757962715398,0.05792453,115420.0,115410.0,1.54435087]
[1757962715795,0.4295554,115420.0,115410.0,1.54435087]
[1757962715992,0.05792453,115420.0,115410.0,1.54435087]
[1757962716198,0.4295554,115420.0,115410.0,1.54435087]
[1757962716800,0.4295554,115420.0,115410.0,1.18355087]
[1757962718607,0.4295554,115420.0,115410.0,1.54435087]
[1757962719005,0.05792453,115420.0,115410.0,1.54435087]
[1757962719201,0.05792453,115420.0,115410.0,1.91598174]
[1757962720406,0.05792453,115420.0,115410.0,1.54435087]
[1757962723014,0.03630453,115420.0,115410.0,1.91598174]
[1757962723215,0.03630453,115420.0,115410.0,1.54435087]
[1757962725116,0.03630453,115420.0,115410.0,1.17272]
[1757962725317,0.03630453,115420.0,115410.0,1.54435087]
[1757962727218,0.05900453,115420.0,115410.0,1.54307087]
[1757962729514,0.05900453,115420.0,115410.0,1.17144]
[1757962729714,0.05900453,115420.0,115410.0,0.3608]
[1757962729917,0.05900453,115420.0,115410.0,1.54295087]
[1757962730218,0.4306354,115420.0,115410.0,1.54295087]
[1757962730912,0.05900453,115420.0,115410.0,1.54295087]
[1757962732415,0.05900453,115420.0,115410.0,0.73243087]
[1757962732618,0.05900453,115420.0,115410.0,1.54239087]
[1757962736420,0.4306354,115420.0,115410.0,0.73243087]
[1757962736611,0.6806354,115420.0,115400.0,0.75269853]
[1757962736816,0.3558994,115420.0,115410.0,0.80904]
[1757962737011,0.1057994,115420.0,115400.0,1.56205853]
[1757962737217,0.01371,115410.0,115400.0,1.56205853]
[1757962737418,0.01371,115410.0,115400.0,1.56195853]
[1757962737618,0.03522453,115410.0,115400.0,1.56195853]
[1757962738020,0.4068554,115410.0,115400.0,1.56195853]
[1757962738316,0.03522453,115410.0,115400.0,2.3302269]
[1757962738622,0.02151453,115410.0,115400.0,2.3302269]
[1757962739123,0.02151453,115410.0,115400.0,2.5802269]
[1757962746618,0.02151453,115410.0,115400.0,1.7708669]
[1757962746817,0.02151453,115410.0,115400.0,2.5797069]
[1757962747924,0.02151453,115410.0,115400.0,1.7708669]
[1757962748124,0.02151453,115410.0,115400.0,2.5790669]
[1757962750220,0.02151453,115410.0,115400.0,2.3290669]
[1757962750423,0.0001,115420.0,115410.0,0.08663]
[1757962750623,0.01289,115430.0,115410.0,1.53069174]
[1757962750923,0.01289,115430.0,115420.0,1.54011087]
[1757962751121,0.03417297,115430.0,115420.0,0.73243087]
[1757962751323,0.05697297,115430.0,115420.0,0.73243087]
[1757962751624,0.05697297,115430.0,115420.0,1.54011087]
[1757962752024,0.05797297,115430.0,115420.0,1.54007087]
[1757962752526,0.05697297,115430.0,115420.0,0.73243087]
[1757962752819,0.05897297,115430.0,115420.0,0.73243087]
[1757962753525,0.06097297,115430.0,115420.0,0.73243087]
[1757962756322,0.06097297,115430.0,115420.0,0.74505246]
[1757962757326,0.06097297,115430.0,115420.0,1.55181246]
[1757962758125,0.06097297,115430.0,115420.0,0.74505246]
[1757962758327,0.06097297,115430.0,115420.0,1.55177246]
[1757962761424,0.06097297,115430.0,115420.0,1.55129246]
[1757962761630,0.06097297,115430.0,115420.0,1.55117246]
[1757962761930,0.06097297,115430.0,115420.0,0.74505246]
[1757962762430,0.06097297,115430.0,115420.0,0.37342159]
[1757962762629,0.06097297,115430.0,115420.0,0.74505246]
[1757962765827,0.06097297,115430.0,115420.0,0.37342159]
[1757962766023,0.06097297,115430.0,115420.0,0.74505246]
[1757962767238,0.06097297,115430.0,115420.0,0.73243087]
[1757962769734,0.06097297,115430.0,115420.0,0.3608]
[1757962769934,0.06097297,115430.0,115420.0,0.73243087]
[1757962771035,0.06097297,115430.0,115420.0,0.3608]
[1757962771340,0.06097297,115430.0,115420.0,0.73243087]
[1757962771549,0.06097297,115430.0,115420.0,0.3608]
[1757962771741,0.06097297,115430.0,115420.0,0.73243087]
[1757962773749,0.06097297,115430.0,115420.0,0.69109806]
[1757962775339,0.06097297,115430.0,115420.0,0.3608]
[1757962775540,0.06097297,115430.0,115420.0,0.69109806]
[1757962775742,0.39127103,115430.0,115420.0,0.3608]
[1757962775942,0.034,115420.0,115410.0,1.49451806]
[1757962776242,0.05538297,115420.0,115410.0,1.49441806]
[1757962777148,0.05638297,115420.0,115410.0,1.16412]
[1757962777347,0.05638297,115420.0,115410.0,1.49441806]
[1757962777641,0.034,115410.0,115400.0,0.0001]
[1757962777949,0.034,115400.0,115390.0,0.3609]
[1757962778251,0.034,115390.0,115380.0,1.1641]
[1757962778443,0.05538297,115390.0,115380.0,1.49429806]
[1757962780149,0.05538297,115390.0,115380.0,1.49529806]
[1757962780948,0.02138297,115390.0,115380.0,1.49829806]
[1757962781249,0.01269,115390.0,115380.0,1.49829806]
[1757962781450,0.03407297,115390.0,115380.0,1.49829806]
[1757962783453,0.03407297,115390.0,115380.0,1.49761806]
[1757962785247,0.05538297,115390.0,115380.0,0.004]
[1757962786157,0.05538297,115390.0,115380.0,0.33429806]
[1757962787553,0.05538297,115390.0,115380.0,0.004]
[1757962788357,0.63568103,115390.0,115380.0,0.004]
[1757962789159,0.30538297,115390.0,115380.0,0.004]
[1757962790153,0.63568103,115390.0,115380.0,0.004]
[1757962791558,0.30538297,115390.0,115380.0,0.004]
[1757962791765,0.30538297,115390.0,115380.0,0.69509806]
[1757962794464,0.30536028,115390.0,115380.0,0.69509806]
[1757962795259,0.30536028,115390.0,115380.0,0.3648]
[1757962795459,0.30536028,115390.0,115380.0,0.69509806]
[1757962800368,0.30536028,115390.0,115380.0,0.3648]
[1757962800567,0.30536028,115390.0,115380.0,0.69509806]
[1757962800762,0.05536028,115390.0,115380.0,0.69509806]
[1757962800963,0.03405028,115390.0,115380.0,0.69509806]
[1757962801159,0.05711028,115390.0,115380.0,0.69509806]
[1757962802259,0.05711028,115390.0,115380.0,0.3648]
[1757962802462,0.05711028,115390.0,115380.0,0.69509806]
[1757962803470,0.02136028,115390.0,115380.0,1.03175056]
[1757962803665,0.02136028,115390.0,115380.0,1.83371056]
[1757962804771,0.02136028,115390.0,115380.0,1.75649548]
[1757962805768,0.02136028,115390.0,115380.0,2.34729548]
[1757962805974,0.02136028,115390.0,115380.0,2.43394798]
[1757962807067,0.02136028,115390.0,115380.0,2.43378798]
[1757962807770,0.02136028,115390.0,115380.0,1.63198798]
[1757962808173,0.02136028,115390.0,115380.0,2.43342798]
[1757962808570,0.0001,115400.0,115380.0,2.43342798]
[1757962808769,0.02155245,115400.0,115390.0,0.69109806]
[1757962809079,0.0001,115410.0,115390.0,1.42803872]
[1757962809271,0.0001,115410.0,115400.0,1.90943362]
[1757962809479,0.0001,115420.0,115400.0,2.22943362]
[1757962809669,0.0001,115420.0,115410.0,0.69109806]
[1757962809869,0.03419151,115420.0,115410.0,0.69109806]
[1757962810464,0.03419151,115420.0,115410.0,1.49281806]
[1757962811174,0.02244151,115420.0,115410.0,1.49281806]
[1757962811776,0.03519151,115420.0,115410.0,1.16468]
[1757962811982,0.03519151,115420.0,115410.0,1.49497806]
[1757962812482,0.001,115420.0,115410.0,2.13160806]
[1757962812683,0.002,115420.0,115410.0,2.13172806]
[1757962812979,0.002,115420.0,115410.0,2.1409691]
[1757962813279,0.002,115420.0,115410.0,1.3370491]
[1757962813477,0.002,115420.0,115410.0,2.1408891]
[1757962813671,0.0001,115430.0,115410.0,2.1408891]
[1757962813873,0.0001,115430.0,115420.0,0.69109806]
[1757962814072,0.0001,115430.0,115420.0,1.49481806]
[1757962814073,0.0214015,115430.0,115420.0,1.49481806]
[1757962814976,0.0214015,115430.0,115420.0,0.69109806]
[1757962815176,0.0341515,115430.0,115420.0,1.49457806]
[1757962816274,0.03413344,115430.0,115420.0,1.49457806]
[1757962816673,0.03513344,115430.0,115420.0,0.69109806]
[1757962816873,0.05919344,115430.0,115420.0,1.49485806]
[1757962819581,0.03613344,115430.0,115420.0,1.49485806]
[1757962822188,0.02338344,115430.0,115420.0,1.49485806]
[1757962822583,0.02338344,115430.0,115420.0,1.82485806]
[1757962824690,0.02238344,115430.0,115420.0,1.82485806]
[1757962825091,0.02138344,115430.0,115420.0,1.74585806]
[1757962825398,0.02138344,115430.0,115420.0,2.03585806]
[1757962826394,0.02138344,115430.0,115420.0,2.12248056]
[1757962826592,0.0001,115440.0,115430.0,0.086615]
[1757962826796,0.0001,115450.0,115430.0,1.42801112]
[1757962827096,0.0001,115450.0,115440.0,1.82583612]
[1757962827297,0.01285,115460.0,115440.0,2.12619588]
[1757962827591,0.01285,115460.0,115450.0,0.69109806]
[1757962827592,0.0001,115460.0,115450.0,0.69109806]
[1757962827798,0.01285,115470.0,115450.0,1.01109806]
[1757962827999,0.01285,115470.0,115460.0,1.49549806]
[1757962828295,0.01275,115470.0,115460.0,1.49549806]
[1757962829197,0.01275,115470.0,115460.0,0.69109806]
[1757962829395,0.01275,115470.0,115460.0,1.49557806]
[1757962830394,0.01375,115470.0,115460.0,1.56557806]
[1757962832401,0.01375,115470.0,115460.0,1.79557806]
[1757962833200,0.01375,115470.0,115460.0,1.46528]
[1757962833503,0.01375,115470.0,115460.0,1.56557806]
[1757962833903,0.01375,115470.0,115460.0,1.6065341]
[1757962834504,0.01375,115470.0,115460.0,1.5365341]
[1757962834805,0.01375,115470.0,115460.0,1.16528]
[1757962835004,0.01375,115470.0,115460.0,1.5365341]
[1757962835397,0.001,115470.0,115460.0,1.5365341]
[1757962835605,0.001,115470.0,115460.0,1.9077882]
[1757962835898,0.01487,115470.0,115460.0,1.16528]
[1757962836100,0.01487,115470.0,115460.0,1.5365341]
[1757962836604,0.01487,115470.0,115460.0,1.16528]
[1757962836803,0.01487,115470.0,115460.0,1.5365341]
[1757962838496,0.0361129,115470.0,115460.0,1.5365341]
[1757962839605,0.0361129,115470.0,115460.0,1.6065341]
[1757962839806,0.0222429,115470.0,115460.0,2.10805429]
[1757962840908,0.0222429,115470.0,115460.0,2.35805429]
[1757962842410,0.0222429,115470.0,115460.0,1.61554609]
[1757962842608,0.0222429,115470.0,115460.0,2.35805429]
[1757962844205,0.0222429,115470.0,115460.0,1.55357429]
[1757962844405,0.0222429,115470.0,115460.0,2.36009429]
[1757962844605,0.0222429,115470.0,115460.0,2.44668679]
[1757962844805,0.0222429,115470.0,115460.0,2.36009429]
[1757962845509,0.0222429,115470.0,115460.0,2.44668679]
[1757962847110,0.0212429,115470.0,115460.0,2.44968679]
[1757962847310,0.0212429,115470.0,115460.0,2.36309429]
[1757962848211,0.0212429,115470.0,115460.0,2.44968679]
[1757962848607,0.0001,115480.0,115470.0,0.7425082]
[1757962848806,0.01397,115490.0,115470.0,1.4798929]
[1757962849007,0.01397,115490.0,115480.0,1.5386141]
[1757962849310,0.02897,115500.0,115480.0,1.8286141]
[1757962849507,0.02897,115500.0,115490.0,0.7320541]
[1757962849715,0.02887,115500.0,115490.0,0.8020541]
[1757962850311,0.02887,115500.0,115490.0,1.3233082]
[1757962850613,0.02887,115500.0,115490.0,0.9520541]
[1757962851313,0.02887,115500.0,115490.0,1.3233082]
[1757962851709,0.02887,115500.0,115490.0,2.1293082]
[1757962852510,0.015,115500.0,115490.0,2.1293082]
[1757962852812,0.017,115500.0,115490.0,2.1293082]
[1757962853412,0.017,115500.0,115490.0,2.1382937]
[1757962853612,0.016,115500.0,115490.0,2.1382937]
[1757962853813,0.015,115500.0,115490.0,1.3336137]
[1757962854018,0.015,115500.0,115490.0,2.1391737]
[1757962854509,0.015,115500.0,115490.0,1.35406127]
[1757962855015,0.6713141,115500.0,115490.0,1.40792757]
[1757962855213,0.6713141,115500.0,115490.0,1.77918167]
[1757962855411,0.30006,115500.0,115490.0,1.77918167]
[1757962855709,0.6713141,115500.0,115490.0,0.38224757]
[1757962856116,0.6713141,115500.0,115490.0,0.75350167]
[1757962856309,0.6713141,115500.0,115490.0,1.55934167]
[1757962856505,0.6713141,115500.0,115490.0,1.18808757]
[1757962856716,0.30006,115500.0,115490.0,1.55934167]
[1757962856917,0.6713141,115500.0,115490.0,1.55934167]
[1757962857616,0.6713141,115500.0,115490.0,1.55914167]
[1757962857817,0.6713141,115500.0,115490.0,1.18788757]
[1757962858020,0.6713141,115500.0,115490.0,0.75350167]
[1757962858214,1.0425682,115500.0,115490.0,0.001]
[1757962858419,1.45016307,115500.0,115490.0,0.001]
[1757962858925,0.03434,115490.0,115480.0,0.0001]
[1757962859112,0.03434,115490.0,115470.0,0.0001]
[1757962859113,0.03434,115480.0,115470.0,0.0001]
[1757962859418,0.03434,115470.0,115460.0,0.0001]
[1757962859617,0.03434,115460.0,115450.0,0.0001]
[1757962859919,0.03434,115450.0,115440.0,0.7321541]
[1757962860116,0.03434,115450.0,115440.0,0.7320541]
[1757962860413,0.4015941,115450.0,115440.0,0.7320541]
[1757962860617,0.49308382,115450.0,115440.0,0.7320541]
[1757962860819,0.42277838,115450.0,115440.0,0.7320541]
[1757962861022,0.42277838,115450.0,115440.0,0.7360541]
[1757962861023,0.05152428,115450.0,115440.0,0.7360541]
[1757962862314,0.03033428,115450.0,115440.0,1.1103082]
[1757962862813,0.05152428,115450.0,115440.0,1.1103082]
[1757962863622,0.03031463,115450.0,115440.0,1.1043082]
[1757962863809,0.03031463,115450.0,115440.0,1.1063082]
[1757962866719,0.05150463,115450.0,115440.0,0.7350541]
[1757962869219,0.05150463,115450.0,115440.0,1.1063082]
[1757962872426,0.03034,115450.0,115440.0,1.1063082]
[1757962872928,0.05137286,115450.0,115440.0,1.1063082]
[1757962873330,0.03034,115450.0,115440.0,1.1063082]
[1757962876833,0.00915,115450.0,115440.0,1.1063082]
[1757962877836,0.00915,115450.0,115440.0,1.1663082]
[1757962878038,0.00915,115450.0,115440.0,1.4263082]
[1757962878636,0.00915,115450.0,115440.0,1.7629157]
[1757962878835,0.01325,115460.0,115440.0,1.7629157]
[1757962879138,0.03444,115460.0,115450.0,1.5372141]
[1757962879332,0.03434,115460.0,115450.0,1.5372141]
[1757962880840,0.01315,115460.0,115450.0,1.7772141]
[1757962881541,0.01325,115470.0,115450.0,1.8638141]
[1757962881733,0.03444,115470.0,115460.0,0.7320541]
[1757962881933,0.03434,115470.0,115460.0,0.7320541]
[1757962884344,0.03434,115470.0,115460.0,0.7330541]
[1757962884637,0.03434,115470.0,115460.0,0.74241695]
[1757962885337,0.05541726,115470.0,115460.0,0.74241695]
[1757962885739,0.05541726,115470.0,115460.0,0.7330541]
[1757962886339,0.05541726,115470.0,115460.0,1.5372141]
[1757962886535,0.05541726,115470.0,115460.0,1.5371741]
[1757962886740,0.05541726,115470.0,115460.0,1.5371341]
[1757962886938,0.05541726,115470.0,115460.0,0.7330541]
[1757962887132,0.05541726,115470.0,115460.0,1.5370941]
[1757962887640,0.05541726,115470.0,115460.0,0.7330541]
[1757962887843,0.05541726,115470.0,115460.0,1.5368941]
[1757962888244,0.05541726,115470.0,115460.0,0.7330541]
[1757962888444,0.05541726,115470.0,115460.0,1.5367741]